[Event "Prague Festival-Challengers 2022"]
[Site "Prague"]
[Date "2022.06.16"]
[Round "8.5"]
[White "Niemann, Hans Moke"]
[Black "Michalik, Peter"]
[Result "1-0"]
[ECO "D36"]
[WhiteElo "2656"]
[BlackElo "2579"]
[Annotator "TA"]
[PlyCount "133"]
[EventDate "2022.06.07"]
[EventType "tourn"]
[EventCountry "CZE"]
[SourceTitle "playchess.com"]
[Source "ChessBase"]
[SourceQuality "1"]
[TimeControl "40/5400+30:1800+30"]

{[%evp 25,133,25,34,-8,-3,-17,-18,-22,-13,-15,17,16,16,19,12,3,10,0,0,6,9,9,18,13,72,71,108,91,94,71,82,69,69,69,63,47,43,42,41,16,21,18,22,10,74,0,55,21,34,16,79,79,159,81,108,87,80,85,70,65,90,59,45,52,75,68,79,91,181,181,160,147,381,367,353,337,395,393,350,-297,-294,-290,-283,-437,-412,-419,-418,-427,582,573,472,0,89,95,97,105,103,54,606,0,0,0,0,0,684,550,29983,29984,29993,29994]} 1. d4 {[%emt 0:00:08]} Nf6 {[%emt 0:00:05]} 2. c4 {[%emt 0:00:12]} e6 {[%emt 0:00:05]} 3. Nf3 {[%emt 0:02:10]} d5 {[%emt 0:00:09]} 4. Nc3 {[%emt 0:00:08]} Nbd7 {[%emt 0:01:12]} 5. cxd5 {[%emt 0:04:11]} exd5 {[%emt 0:00:05]} 6. Bg5 {[%emt 0:02:28]} c6 {[%emt 0:01:36]} 7. e3 {[%emt 0:01:41]} h6 {[%emt 0:00:12]} 8. Bh4 {[%emt 0:00:17]} Be7 {[%emt 0:00:05]} 9. Bd3 {[%emt 0:07:30]} O-O {[%emt 0:02:58]} 10. Qc2 {[%emt 0:00:58]} Re8 {[%emt 0:00:26]} 11. O-O {[%emt 0:00:42]} Ne4 {[%emt 0:00:23]} 12. Bxe4 {[%emt 0:00:18]} Bxh4 {[%emt 0:00:06]} 13. Bh7+ {[%emt 0:00:09]} Kh8 {[%emt 0:00:06]} 14. Bf5 {[%emt 0:01:51] D36: Queen's Gambit Declined: Exchange Variation: Main line (5 Bg5 c6 6 Qc2).} Be7 {[%emt 0:04:10]} 15. Rab1 {[%emt 0:00:33]} a5 {[%emt 0:01:11] [#]} 16. Rfe1 $146 {[%emt 0:02:03] The position is equal.} ({Predecessor:} 16. a3 Bd6 17. b4 axb4 18. axb4 g6 19. Bxg6 fxg6 20. Qxg6 Bf8 21. b5 Bg7 22. bxc6 {½-½ (74) Tarigan,G (2149)-Kollars,D (2617) Chess.com INT 2021}) 16... Nf6 {[%emt 0:06:00]} 17. Ne5 {[%emt 0:04:13]} Kg8 {[%emt 0:02:36]} 18. Bd3 {[%emt 0:00:14]} Bd6 {[%emt 0:10:25]} 19. f4 {[%emt 0:00:09]} Re7 {[%emt 0:00:09]} 20. h3 {[%emt 0:00:39]} Nd7 {[%emt 0:01:11]} 21. Ne2 {[%emt 0:06:02][%cal Bc3e2,Be2g3,Bg3f5][%mdl 32]} Nf8 {[%emt 0:03:28]} 22. Ng3 {[%emt 0:00:16]} Qe8 {[%emt 0:07:07]} 23. Qf2 {[%emt 0:01:31]} f6 {[%emt 0:01:20]} 24. Nf3 {[%emt 0:00:07][%cal Be5f3,Bf3h4,Bh4f5][%mdl 32]} Bd7 {[%emt 0:04:24]} (24... Kh8 $11) 25. Nh4 $1 $16 {[%emt 0:00:46]} Qf7 {[%emt 0:04:15]} 26. Nhf5 {[%emt 0:01:39]} Bxf5 {[%emt 0:00:07]} 27. Nxf5 {[%emt 0:00:07]} Rd7 {[%emt 0:00:04]} 28. Qh4 {[%emt 0:01:16]} Kh8 {[%emt 0:09:49]} 29. Rf1 {[%emt 0:00:09][%cal Be1f1,Bf1f3,Bf3g3,Bg3g6][%mdl 32]} (29. Nxd6 Rxd6 30. Re2 Re8 $11) 29... Rad8 {[%emt 0:03:50]} 30. Rf3 {[%emt 0:00:46]} Ng6 $1 {[%emt 0:05:47]} 31. Qg4 {[%emt 0:10:34]} Ne7 {[%emt 0:00:06]} 32. Rg3 {[%emt 0:00:49][%cal Rf5g7]} Nxf5 {[%emt 0:01:10]} 33. Qxf5 {[%emt 0:00:05][%csl Gd3][%cal Rf5h7]} Kg8 {[%emt 0:11:28]} 34. Rf1 {[%emt 0:03:16][%cal Bb1f1,Bf1f3,Bf3g3][%mdl 32] Black must now prevent Rff3.} (34. Rc1 {seems wilder.} Re7 35. h4 Qe6 36. Qg6) 34... Kf8 {[%emt 0:02:50]} (34... g5 35. Rgf3 gxf4 36. exf4 $16) (34... Re7 $11 {remains equal.}) 35. b3 {[%emt 0:01:47]} (35. Rg6 $16) 35... Bb8 {[%emt 0:04:45]} (35... Re7 $11) 36. Rff3 {[%emt 0:00:39]} (36. Rg6 $5 {[%cal Rf1f3]}) 36... Ke7 {[%emt 0:05:50]} 37. Rg6 {[%emt 0:14:27]} Rf8 {[%emt 0:00:05]} (37... Rg8 $1 $11) 38. Rfg3 {[%emt 0:00:50] White is more active.} Kd8 {[%emt 0:09:55]} (38... Rg8 $142) 39. Qg4 {[%emt 0:01:50]} (39. Rxg7 $142 Qxg7 40. Rxg7 Rxg7 41. e4) 39... Re8 {[%emt 0:00:00]} 40. Kf2 {[%emt 0:00:00] aiming for Bf5.} Ree7 {[%emt 0:00:00]} 41. Bf5 {[%emt 0:02:15]} Rc7 {[%emt 0:00:00]} 42. Qd1 $36 {[%emt 0:00:19][%mdl 2048] White has the initiative.} Qe8 {[%emt 0:04:09]} 43. Qd2 {[%emt 0:00:09]} (43. b4 {feels hotter.} axb4 44. Qa4 b6 45. Qa8) 43... b6 {[%emt 0:00:10]} 44. b4 {[%emt 0:00:34]} axb4 {[%emt 0:05:56]} 45. Qxb4 {[%emt 0:00:10]} Rb7 {[%emt 0:00:04]} 46. a4 {[%emt 0:00:16][%cal Ba2a4,Ba4a5,Ba5a6][%mdl 32]} Rf7 {[%emt 0:01:48]} (46... c5 $16 {is a better defense.} 47. dxc5 Qc6) 47. a5 $18 {[%emt 0:03:25]} Qe7 {[%emt 0:00:20]} 48. Qc3 {[%emt 0:00:16]} Qc7 {[%emt 0:03:04]} (48... c5 $16) 49. a6 {[%emt 0:00:17]} Ra7 {[%emt 0:00:04]} 50. Qb4 {[%emt 0:00:05]} c5 {[%emt 0:01:50]} 51. Qb5 {[%emt 0:02:14]} cxd4 {[%emt 0:01:45] [#]} 52. Be6 $4 {[%emt 0:11:26][%mdl 8192]} (52. Qxd5+ Qd6 53. Qxd6+ (53. Qxd4 Qxd4 54. exd4 Bxf4 $11) 53... Bxd6 $11) (52. Rxh6 $1 $18 {[%mdl 512] Intending Rh8+ and mate.} dxe3+ 53. Ke2 (53. Rxe3 Rf8 $18) 53... Qc4+ 54. Qxc4 dxc4 55. Rh8+ Kc7 56. Rc8+ Kd6 57. Rxb8) 52... dxe3+ $19 {[%emt 0:04:23]} 53. Rxe3 {[%emt 0:05:58]} Qxf4+ {[%emt 0:00:17]} 54. Ke2 {[%emt 0:00:18]} (54. Rf3 {was forced.} Qd2+ 55. Kf1 Qc1+ 56. Kf2 Qd2+ 57. Kf1 Qd1+ 58. Kf2 Qc2+ 59. Kg1 Qc1+ 60. Qf1 Qc5+ 61. Qf2) 54... d4 {[%emt 0:00:37]} 55. Rgg3 {[%emt 0:03:25]} (55. Qxb6+ $2 Bc7 56. Qxd4+ Qxd4 $19) 55... dxe3 {[%emt 0:00:43]} 56. Rxe3 {[%emt 0:00:50] [#]} Be5 $4 {[%emt 0:02:48][%mdl 8192]} 57. Bxf7 $18 {[%emt 0:01:46]} Rxf7 {[%emt 0:02:04]} 58. Qxb6+ {[%emt 0:01:17]} (58. g3 $1 $18 {[%cal Rg3f4]} Qxe3+ 59. Kxe3) 58... Ke7 {[%emt 0:06:31]} (58... Rc7 $1 $11 59. a7 Qc4+ 60. Rd3+ Ke7) 59. Qc7+ {[%emt 0:02:04][%mdl 1024] White has strong compensation.} Ke6 {[%emt 0:00:47] [#]} 60. Qc6+ {[%emt 0:03:45]} Ke7 {[%emt 0:00:03]} (60... Kf5 $2 61. Rf3 Re7 62. Rxf4+ Bxf4+ 63. Kf3 $18) 61. Rb3 {[%emt 0:02:15] The board is on fire.} (61. a7 $16 Rf8 62. Re4) 61... Kd8 $2 {[%emt 0:01:04][%mdl 8192] [#]} (61... Qd4 $14) 62. Qd5+ $2 {[%emt 0:05:49]} (62. Rd3+ Bd4 63. Qb6+ Kc8 64. Qc6+ (64. Rxd4 $2 Re7+ 65. Kd3 Qf1+ 66. Kc2 Qf2+ 67. Kc3 Re3+ 68. Kc4 Qa2+ 69. Kb5 Re5+ 70. Qc5+ Rxc5+ $19) 64... Kd8 65. Qb6+ Kc8 66. Qc6+ (66. Rxd4 $2 Re7+ 67. Kd3 Qf1+ 68. Kc2 Rc7+ 69. Qxc7+ Kxc7 $19) 66... Kd8 $11) (62. g3 $1 $18 {[%cal Rg3f4]} Qd4 63. Rd3) 62... Ke8 $11 {[%emt 0:01:31] ...Re7 is the strong threat.} 63. Qa8+ {[%emt 0:07:32]} Ke7 {[%emt 0:00:57] Hoping for ...Qc4+.} 64. Qb7+ {[%emt 0:00:35]} Ke6 $2 {[%emt 0:01:27][%mdl 8192]} (64... Kd8 $11 65. Rd3+ (65. Qxf7 Qe4+ 66. Re3 Qxg2+ 67. Ke1 Qg1+ 68. Ke2 Qg2+ 69. Ke1 Qg1+ 70. Ke2 Qg2+ $11) 65... Bd4 66. Qb6+ (66. Qxf7 Qe4+ 67. Kd2 Qxg2+ 68. Kc1 Qb2+ 69. Kd1 Qb1+ 70. Ke2 Qc2+ 71. Rd2 Qe4+ 72. Kf1 Qf3+ 73. Ke1 Qe4+ 74. Re2 Bc3+ 75. Kf2 Bd4+ 76. Ke1 Bc3+ 77. Kf2 Bd4+ 78. Ke1 $11) 66... Kc8 67. Qc6+ (67. Rxd4 $2 Re7+ 68. Kd3 Qf1+ 69. Kc2 Qf2+ 70. Kc3 Re3+ 71. Kc4 Qa2+ 72. Kb5 Re5+ 73. Qc5+ Rxc5+ $19) 67... Kd8 68. Qb6+ Kc8 69. Qc6+ (69. Rxd4 $2 Re7+ 70. Kd3 Qf1+ 71. Kc2 Qf2+ 72. Kb3 Re3+ 73. Kc4 Qa2+ 74. Kb5 Re5+ 75. Qc5+ Rxc5+ $19) 69... Kd8 70. Qb6+) 65. Qc6+ $18 {[%emt 0:00:11]} Ke7 {[%emt 0:00:30]} 66. Rb7+ {[%emt 0:00:10][%mdl 64] Deflection} Kd8 {[%emt 0:00:08]} 67. Rxf7 {[%emt 0:00:27] Both players deserved the win here.  Weighted Error Value: White=0.34/Black=0.31} 1-0

[Event "Prague Festival-Challengers 2022"]
[Site "Prague"]
[Date "2022.06.17"]
[Round "9.1"]
[White "Krzyzanowski, Marcin"]
[Black "Niemann, Hans Moke"]
[Result "0-1"]
[ECO "B11"]
[WhiteElo "2535"]
[BlackElo "2656"]
[Annotator "TA"]
[PlyCount "156"]
[EventDate "2022.06.07"]
[EventType "tourn"]
[EventCountry "CZE"]
[SourceTitle "playchess.com"]
[Source "ChessBase"]
[SourceQuality "1"]
[TimeControl "40/5400+30:1800+30"]

{[%evp 10,156,23,25,34,19,32,14,12,7,0,0,0,0,0,0,0,0,0,0,-3,-7,0,-11,-10,-14,-10,-4,-9,-15,0,0,0,-8,-6,-20,0,-11,-10,-13,-5,-22,-22,-37,-14,-20,0,0,0,-51,-39,-41,-39,-39,0,0,-9,-10,-7,-6,-8,-8,0,-12,-23,-45,-45,-41,-39,-43,-41,-58,-5,-5,-8,-10,-12,-6,-11,-18,-10,-16,-6,-3,0,-101,-71,-98,-102,-86,-9,-104,-89,-87,-98,-110,-102,-154,-176,-161,-157,-338,-341,-343,-314,-350,-342,-344,-343,-435,-430,-442,-416,-411,-410,-441,-318,-577,-559,-896,-877,-1057,-1007,-893,-982,-665,-416,-1167,-1008,-29977,-29978,-29977,-29978,-29972,-29974,-29981,-29982,-29982,-29983,-29976,-1598,-29979,-29980,-29979,-29980,-29980,-29980,-29979,-29980]} 1. e4 {[%emt 0:00:03]} c6 {[%emt 0:06:43]} 2. Nf3 {[%emt 0:00:08]} d5 {[%emt 0:00:10]} 3. Nc3 {[%emt 0:00:06]} dxe4 {[%emt 0:01:06]} 4. Nxe4 {[%emt 0:00:07]} Nf6 {[%emt 0:00:06]} 5. Qe2 {[%emt 0:01:01]} Nxe4 {[%emt 0:01:22]} 6. Qxe4 {[%emt 0:00:04]} Nd7 {[%emt 0:00:12] B11: Caro-Kann: Two Knights Variation.} 7. Bc4 {[%emt 0:00:36]} Nf6 {[%emt 0:00:12]} 8. Qe2 {[%emt 0:03:48]} Bf5 {[%emt 0:01:23] The position is equal.} 9. d3 {[%emt 0:00:07]} e6 {[%emt 0:00:53] [#]} 10. a4 $146 {[%emt 0:01:17]} ({Predecessor:} 10. Bd2 Nd5 11. Ne5 h5 12. O-O Bd6 13. Bb3 Qc7 14. Rfe1 O-O-O 15. d4 f6 16. c4 {0-1 (39) Shyam,S (2505)-Donchenko,A (2610) Douglas 2018}) 10... Bd6 {[%emt 0:02:20]} 11. O-O {[%emt 0:04:00]} h6 {[%emt 0:00:34]} 12. Re1 {[%emt 0:01:11]} O-O {[%emt 0:00:44]} 13. h3 {[%emt 0:01:07]} Re8 {[%emt 0:01:08]} 14. Ne5 {[%emt 0:01:07]} Nd5 {[%emt 0:02:30]} 15. Bb3 {[%emt 0:01:20]} Bc7 {[%emt 0:04:06]} 16. Qh5 {[%emt 0:14:17]} Qf6 {[%emt 0:00:33]} 17. Ng4 {[%emt 0:06:30]} Qg6 {[%emt 0:03:04]} (17... Qe7 {keeps more tension.} 18. Ne5 Ba5 19. c3 Bc7) 18. Qxg6 {[%emt 0:00:46]} Bxg6 {[%emt 0:00:13]} 19. a5 {[%emt 0:01:10]} a6 {[%emt 0:00:26]} 20. Ne5 {[%emt 0:01:11]} Bh7 {[%emt 0:00:34][%cal Bg6h7,Bh7g8,Bg8f7,Bf7e6][%mdl 32]} 21. Bd2 {[%emt 0:00:28]} Rad8 {[%emt 0:00:34]} 22. g3 {[%emt 0:00:46]} Kf8 {[%emt 0:02:33]} 23. Re2 {[%emt 0:01:14]} f6 {[%emt 0:00:29]} 24. Nc4 {[%emt 0:00:12]} e5 {[%emt 0:00:08]} 25. Rae1 {[%emt 0:02:19]} Bg8 {[%emt 0:00:25]} 26. Kg2 {[%emt 0:01:29]} g5 {[%emt 0:02:00]} 27. f3 {[%emt 0:04:21]} h5 {[%emt 0:00:27]} 28. Kf2 {[%emt 0:04:21]} Bf7 {[%emt 0:02:42]} 29. Rh1 {[%emt 0:06:40]} (29. Re4 $11) 29... Be6 {[%emt 0:02:14]} 30. Ree1 {[%emt 0:05:24]} Bb8 {[%emt 0:00:53]} 31. h4 {[%emt 0:01:19]} Ba7+ {[%emt 0:02:16]} 32. Kg2 {[%emt 0:00:07]} g4 {[%emt 0:00:04]} 33. fxg4 {[%emt 0:01:50]} Bxg4 {[%emt 0:00:27]} 34. Rhf1 $132 {[%emt 0:01:44][%mdl 2048] White has counterplay} Kg7 {[%emt 0:00:08]} 35. Ne3 {[%emt 0:00:12]} Be6 {[%emt 0:00:34] ...Bxe3 is the strong threat.} 36. Nxd5 {[%emt 0:01:49]} cxd5 {[%emt 0:00:11]} 37. Bb4 {[%emt 0:06:26]} Bg4 {[%emt 0:02:13]} 38. Ba4 {[%emt 0:02:04]} Re6 {[%emt 0:00:18]} 39. Bb3 {[%emt 0:00:05]} Kg6 {[%emt 0:01:57]} 40. Kh2 {[%emt 0:00:00]} f5 {[%emt 0:00:00]} (40... Bd4 $15) 41. Bd2 $11 {[%emt 0:10:41]} e4 {[%emt 0:13:24]} 42. Bg5 {[%emt 0:04:55]} Rdd6 {[%emt 0:00:19]} 43. Bf4 {[%emt 0:02:05]} Rd7 {[%emt 0:00:32]} 44. Ba4 {[%emt 0:08:37]} Rd8 {[%emt 0:01:24]} 45. Bg5 {[%emt 0:01:38]} Rc8 {[%emt 0:00:07]} 46. c3 {[%emt 0:05:56]} b5 {[%emt 0:06:29]} 47. dxe4 {[%emt 0:02:42]} dxe4 $17 {[%emt 0:01:45]} (47... bxa4 $2 48. exf5+ Bxf5 49. Rxe6+ Bxe6 50. Rf6+ Kh7 51. Rxe6 $18) 48. Bb3 {[%emt 0:02:05]} Rd6 {[%emt 0:00:50] aiming for ...Re8.} 49. Bd1 {[%emt 0:00:37]} Rd3 {[%emt 0:04:15]} (49... Re8 $17 {Hoping for ...e3.} 50. Bf4 Rd3 51. Bxg4 hxg4) 50. Bc2 {[%emt 0:02:16]} (50. Bxg4 $1 $11 hxg4 51. Rd1) 50... Rd7 $1 {[%emt 0:04:12][%cal Oe4e3] Strongly threatening ...e3!} 51. Bd1 {[%emt 0:00:52]} Rc5 {[%emt 0:00:08] Black is more active.} 52. Bxg4 {[%emt 0:02:10]} hxg4 {[%emt 0:00:48]} 53. Rd1 {[%emt 0:04:36] [#]} ({White should play} 53. Re2) 53... Rcd5 $1 {[%emt 0:00:11]} 54. Rxd5 {[%emt 0:00:05]} Rxd5 $19 {[%emt 0:00:09][%mdl 4096] Endgame KRB-KRB} 55. Re1 $2 {[%emt 0:00:21] This move loses the game for White.} (55. Bf4 $17) 55... Bb8 {[%emt 0:00:22]} 56. Kg2 {[%emt 0:00:28]} Rd3 {[%emt 0:01:06]} 57. Be3 {[%emt 0:00:25]} Bc7 {[%emt 0:00:16]} 58. Kf2 {[%emt 0:01:21]} Kh5 {[%emt 0:01:14]} ({And not} 58... Bxa5 59. Ra1 f4 60. Bxf4 Bb6+ 61. Ke2 $11) 59. Rg1 {[%emt 0:04:50]} Bxa5 {[%emt 0:00:40][%cal Od3e3]} 60. Rf1 {[%emt 0:00:51]} Bc7 {[%emt 0:00:19][%cal Oc7g3] White must now prevent ...Bxg3+!} 61. Ke2 {[%emt 0:00:22]} Rd5 {[%emt 0:00:06]} ({Weaker is} 61... Bxg3 62. Rxf5+ Kxh4 63. Rf6 $17) 62. Rg1 {[%emt 0:01:52]} Be5 {[%emt 0:00:22]} 63. Bd4 {[%emt 0:02:01]} Bxd4 {[%emt 0:02:43] KRB-KR} 64. Rd1 {[%emt 0:00:03] [#]} f4 $1 {[%emt 0:00:14] ( -> ...f3+)} 65. gxf4 {[%emt 0:00:21] [#]} (65. cxd4 fxg3) 65... g3 $1 {[%emt 0:01:17][%cal Oh5g4,Bg4g3,Bg3g2][%mdl 32] Threatens to win with ...Kg4!} 66. cxd4 {[%emt 0:04:24] KR-KR} Kg4 {[%emt 0:00:29]} 67. Ke3 {[%emt 0:01:28]} g2 {[%emt 0:00:12] And now ...Rf5 would win.} 68. Kf2 {[%emt 0:01:19]} (68. Rg1 $142 Kg3 69. Kxe4) 68... Kh3 {[%emt 0:00:52]} 69. Kg1 {[%emt 0:01:38]} Kg3 {[%emt 0:00:51]} 70. Rd2 {[%emt 0:00:34]} e3 {[%emt 0:00:17]} 71. Rxg2+ {[%emt 0:00:05]} Kf3 {[%emt 0:00:03]} 72. Rh2 {[%emt 0:01:16]} Rxd4 {[%emt 0:00:20][%cal Rd4d1]} 73. Rh3+ {[%emt 0:00:10]} Ke4 {[%emt 0:00:06]} 74. Kf1 {[%emt 0:00:26]} Kd3 {[%emt 0:00:15]} (74... Rd1+ $142 75. Ke2 Rd2+ 76. Ke1 Rxb2 77. Kd1 Rd2+ 78. Kc1 Ra2 79. Kd1 b4 80. Rg3 b3 81. f5 Rf2 82. Kc1 b2+ 83. Kb1 e2 84. Rg1 Kxf5 85. Rg5+ Kf4 86. Rg1 Rf1+ 87. Rxf1+ exf1=Q+ 88. Kxb2 Qc4 89. h5 Ke4 90. Kb1 Qb3+ 91. Ka1 Kd3 92. h6 Kc2 93. h7 Qb2#) 75. h5 {[%emt 0:01:11]} Kd2 {[%emt 0:00:37] Black mates.} 76. Rh2+ {[%emt 0:00:22]} Kd1 {[%emt 0:00:05]} 77. h6 {[%emt 0:00:27]} Rxf4+ {[%emt 0:00:07]} 78. Kg2 {[%emt 0:00:08]} e2 {[%emt 0:00:04] Weighted Error Value: White=0.17 (very precise) /Black=0.08 (flawless)} 0-1

[Event "Prague Festival-Challengers 2022"]
[Site "Prague"]
[Date "2022.06.17"]
[Round "9.2"]
[White "Stocek, Jiri"]
[Black "Sasikiran, Krishnan"]
[Result "0-1"]
[ECO "D47"]
[WhiteElo "2533"]
[BlackElo "2651"]
[Annotator "TA"]
[PlyCount "154"]
[EventDate "2022.06.07"]
[EventType "tourn"]
[EventCountry "CZE"]
[SourceTitle "playchess.com"]
[Source "ChessBase"]
[SourceQuality "1"]
[TimeControl "40/5400+30:1800+30"]

{[%evp 19,154,24,16,6,146,109,91,103,97,68,70,33,29,44,80,23,72,-71,-71,-73,-77,-79,-77,-63,-73,-62,-60,-104,-93,-110,-126,-122,-70,-258,-225,-271,-277,-270,-265,-384,-316,-352,-351,-394,-391,-394,-390,-394,-394,-388,-320,-395,-395,-395,-395,-473,-290,-275,-129,-131,-127,-127,-129,-118,-106,-110,-108,-128,-127,-116,-121,-129,-69,-81,-68,-66,-49,-63,-25,-93,-93,-104,-13,-27,-6,-88,-14,-14,-14,-14,0,-11,-12,-15,-15,-96,-62,-96,-29,-142,-12,-60,-16,-13,0,-64,0,-18,-8,-8,-8,-8,-8,-8,-8,-172,-172,-172,-172,-165,-165,-186,-186,-193,-186,-186,-186,-29966,-29967,-29967,-29967,-29965,-29964,-29966,-29964,-29958,-5050]} 1. Nf3 {[%emt 0:01:12]} d5 {[%emt 0:00:21]} 2. d4 {[%emt 0:01:17]} Nf6 {[%emt 0:00:21]} 3. c4 {[%emt 0:00:23]} c6 {[%emt 0:00:08]} 4. Nc3 {[%emt 0:01:22]} e6 {[%emt 0:00:09]} 5. e3 {[%emt 0:01:59]} Nbd7 {[%emt 0:00:55]} 6. Bd3 {[%emt 0:00:48]} dxc4 {[%emt 0:00:43]} 7. Bxc4 {[%emt 0:00:06]} b5 {[%emt 0:00:11]} 8. Be2 {[%emt 0:01:40]} Bb7 {[%emt 0:09:25]} 9. O-O {[%emt 0:02:33]} a6 {[%emt 0:12:14]} 10. e4 {[%emt 0:07:46]} c5 {[%emt 0:02:58]} 11. d5 {[%emt 0:05:14] D47: Semi-Slav: Meran System.} e5 $5 {[%emt 0:07:30][%mdl 4] [#] A promising side line.} (11... exd5 $11 {remains equal.} 12. Nxd5 Nxd5 13. exd5 Bd6) 12. Nd2 $146 {[%emt 0:12:01]} ({Predecessor:} 12. Qc2 Bd6 13. a4 b4 14. Nd1 a5 15. Ne3 O-O 16. Bb5 Qc7 17. Nc4 Ba6 18. Bxa6 Rxa6 {1-0 (43) Noe,C (2530)-Nemec,J (2402) Marianske Lazne 2022}) 12... c4 {[%emt 0:10:07]} 13. a4 {[%emt 0:04:22] White is better.} b4 {[%emt 0:05:08]} 14. Ncb1 {[%emt 0:02:28]} Rc8 {[%emt 0:02:07]} 15. Nxc4 {[%emt 0:01:28]} Nxe4 {[%emt 0:02:24]} 16. Nbd2 {[%emt 0:08:30]} Nec5 {[%emt 0:10:36]} 17. Re1 {[%emt 0:09:44]} ({Better is} 17. d6 $16) 17... Be7 {[%emt 0:06:54]} (17... Nf6 $11) 18. Bg4 {[%emt 0:10:38]} (18. Nb3 $16) 18... Bxd5 $17 {[%emt 0:03:25]} 19. Nxe5 {[%emt 0:03:41]} Nxe5 {[%emt 0:02:29]} 20. Rxe5 {[%emt 0:03:48]} Be6 {[%emt 0:01:02]} 21. Bxe6 {[%emt 0:03:28]} Nxe6 {[%emt 0:00:15]} 22. Re1 {[%emt 0:02:27]} O-O {[%emt 0:02:47]} 23. Nb3 {[%emt 0:00:28]} Bf6 {[%emt 0:01:59]} 24. g3 {[%emt 0:01:42]} h6 {[%emt 0:05:42]} 25. Rb1 {[%emt 0:01:39]} Qe8 {[%emt 0:00:52]} (25... Qc7 $17 {And now ...Rfd8 would win.} 26. Be3 Rfd8) 26. Qd3 $2 {[%emt 0:04:27]} (26. Na5 $15) 26... Qc6 $1 $19 {[%emt 0:01:25] ...Rfd8 is the strong threat.} (26... Qxa4 27. Ra1 Nc5 28. Rxa4 $17) 27. Bd2 {[%emt 0:03:37]} Rfd8 {[%emt 0:02:12]} ({Inferior is} 27... Qxa4 28. Ra1 Qb5 29. Qxb5 axb5 30. Bxb4 $17) 28. Qe4 {[%emt 0:00:45]} Qxa4 {[%emt 0:03:11]} 29. Qf3 {[%emt 0:00:44]} (29. Re3 $142) 29... Bg5 {[%emt 0:01:54]} 30. Ra1 {[%emt 0:01:05]} Qb5 {[%emt 0:00:49]} 31. Be3 {[%emt 0:01:30]} Bxe3 {[%emt 0:02:46]} 32. Rxe3 {[%emt 0:00:05]} Rc2 {[%emt 0:00:21]} 33. Rd1 {[%emt 0:00:59]} Rxd1+ {[%emt 0:01:23]} 34. Qxd1 {[%emt 0:00:02]} Qf5 {[%emt 0:00:47]} 35. Rf3 {[%emt 0:01:45]} Qg6 {[%emt 0:00:29]} 36. h4 {[%emt 0:00:22]} Rxb2 {[%emt 0:01:04] Threatens to win with ...Rb1.} 37. Qd5 {[%emt 0:00:44]} Re2 {[%emt 0:00:52]} 38. Qa8+ {[%emt 0:01:09]} Kh7 {[%emt 0:00:27]} (38... Nf8 $1 $19 {has better winning chances.} 39. Qb7 Re1+ 40. Kh2 Ne6 41. Qa8+ Kh7 42. Qxa6 Qb1 43. Qd3+ Kg8 44. Qxb1 Rxb1) 39. Qxa6 $17 {[%emt 0:00:32]} Qe4 {[%emt 0:00:50] Black is more active.} 40. Qd3 {[%emt 0:00:00]} Qxd3 {[%emt 0:00:00]} 41. Rxd3 {[%emt 0:01:01][%mdl 4096] Endgame KRN-KRN} Rb2 {[%emt 0:02:28]} 42. h5 {[%emt 0:07:57]} Ng5 {[%emt 0:14:58]} 43. f3 {[%emt 0:00:33]} Ne6 {[%emt 0:03:37]} 44. Kf1 {[%emt 0:01:40]} g6 {[%emt 0:04:52]} 45. hxg6+ {[%emt 0:00:40]} Kxg6 {[%emt 0:00:10]} (45... fxg6 $17 46. Ke1 h5) 46. Nd2 $15 {[%emt 0:01:50]} Kg7 {[%emt 0:02:12]} 47. Ke1 {[%emt 0:05:18]} Nc5 {[%emt 0:00:53]} 48. Rd6 {[%emt 0:02:20]} Rc2 {[%emt 0:02:00]} 49. Rb6 {[%emt 0:04:40]} (49. Kd1 $11 Rc3 50. Rb6) 49... b3 $17 {[%emt 0:00:38]} 50. Kd1 {[%emt 0:00:58]} Rc3 {[%emt 0:00:27]} (50... h5 $1 $17 51. Rb5 Rc3) 51. g4 $1 $11 {[%emt 0:01:03]} Kf8 {[%emt 0:01:05]} 52. Ke2 {[%emt 0:03:43]} (52. Rb5 $11) 52... Ne6 {[%emt 0:01:14]} (52... Ke7 $1 $17 53. Nb1 Rc2+ 54. Ke3 b2) 53. Rb4 $1 {[%emt 0:00:49]} Kg7 {[%emt 0:00:08]} 54. Kd1 {[%emt 0:01:06]} ({Not} 54. Nxb3 $2 Rxb3 $1 {[%mdl 512]} 55. Ra4 Ng5 $19) 54... Nc5 {[%emt 0:00:11]} 55. Rb6 {[%emt 0:00:08]} f6 {[%emt 0:01:00]} 56. Ke2 {[%emt 0:02:55]} Kf7 {[%emt 0:00:33]} 57. f4 {[%emt 0:01:29]} (57. Rb5 $11) 57... Rg3 {[%emt 0:01:02]} 58. f5 {[%emt 0:00:51]} Rxg4 {[%emt 0:00:41]} (58... Ke7 $17 59. Kf2 Rxg4 60. Nxb3 Nd7) 59. Rb5 $1 {[%emt 0:00:31] [#]} Rg2+ {[%emt 0:01:18]} ({Black should play} 59... b2 $1 $17 {aiming for ...Na4.} 60. Rxb2 Rf4) 60. Kd1 {[%emt 0:01:21]} (60. Ke3 $11 {should be considered.} Rg3+ 61. Kd4) 60... Rg1+ {[%emt 0:00:48]} (60... b2 $5 61. Rxb2 Rf2 $17) 61. Ke2 {[%emt 0:00:07] [#]} Rg2+ {[%emt 0:00:19]} (61... b2 $1 $11 62. Rxb2 Ke7) 62. Kd1 $15 {[%emt 0:00:15] [#]} Rg1+ {[%emt 0:00:34]} (62... b2 $1 $15 {deserves consideration.} 63. Rxb2 h5) 63. Ke2 $11 {[%emt 0:00:03]} Rc1 {[%emt 0:00:06]} ({Much worse is} 63... Rg2+ $6 64. Ke3 Nd7 65. Nxb3 $15) 64. Nxb3 {[%emt 0:00:19]} Nxb3 {[%emt 0:00:57] KRN-KR} 65. Rb7+ {[%emt 0:01:13]} Kf8 {[%emt 0:00:25]} 66. Rxb3 {[%emt 0:00:33] KR-KR} Rc5 {[%emt 0:00:37]} 67. Rf3 $2 {[%emt 0:00:58]} (67. Rh3 $11 {and White is okay.}) 67... h5 $19 {[%emt 0:00:17]} 68. Kf2 {[%emt 0:00:59]} Kf7 {[%emt 0:00:31]} 69. Kg3 {[%emt 0:00:17] [#]} Kg7 $1 {[%emt 0:00:11]} 70. Kf4 {[%emt 0:00:50]} Kh6 {[%emt 0:00:11]} 71. Ke4 {[%emt 0:00:14]} Re5+ {[%emt 0:00:25]} 72. Kf4 {[%emt 0:00:03]} Ra5 {[%emt 0:00:09]} 73. Ke4 $2 {[%emt 0:00:05]} (73. Rd3 $19) 73... Ra4+ {[%emt 0:01:05] Black mates.} 74. Kd5 {[%emt 0:00:03]} Kg5 {[%emt 0:00:10]} 75. Ke6 {[%emt 0:00:37]} h4 {[%emt 0:00:24]} 76. Rf1 {[%emt 0:00:34]} Re4+ {[%emt 0:00:54]} 77. Kf7 {[%emt 0:00:20]} h3 {[%emt 0:00:11] Weighted Error Value: White=0.31/Black=0.31} (77... Re3 $142 78. Rf2 h3 79. Rd2 Kxf5 80. Rd5+ Re5 81. Rd2 Kg5 82. Rd8 h2 83. Rh8 Re2 84. Rg8+ Kf4 85. Rh8 f5 86. Kf6 Rg2 87. Ke7 Ke4 88. Rh4+ f4 89. Kd6 Ke3 90. Rh3+ f3 91. Ke7 Ke4 92. Rh4+ Kf5 93. Rh5+ Kg6 94. Rh8 Kg7 95. Rh5 f2 96. Rf5 h1=Q 97. Rf7+ Kh6 98. Ke6 f1=Q 99. Rxf1 Qxf1 100. Kd6 Rd2+ 101. Kc7 Qc1+ 102. Kb7 Rb2+ 103. Ka8 Qa1#) 0-1